fUST/lending_fUST_20250723
["ID","MTS","AMOUNT","RATE_DAILY","PERIOD"]
[374138316,1753227143098,-117.35946033,0.00016793,2]
[374138317,1753227143325,370000.0,0.00016697,2]
[374138318,1753227144654,-162.41983583,0.00016793,2]
[374138319,1753227146703,-216.51216554,0.00016793,2]
[374138320,1753227150390,-192.67927764,0.00016793,2]
[374138321,1753227154651,8.64354089,0.00016793,2]
[374138322,1753227160885,-342.33913775,0.00016792,2]
[374138323,1753227161428,-157.66086225,0.00016792,2]
[374138324,1753227161453,-176.03473461,0.00016792,2]
[374138325,1753227165579,-162.47786734,0.00016792,2]
[374138326,1753227165602,-119.73149059,0.00016792,2]
[374138327,1753227167802,-160.05037009,0.00016792,2]
[374138328,1753227170030,-198.81543304,0.00016792,2]
[374138329,1753227174027,-21.40270628,0.00016792,2]
[374138330,1753227174053,-278.84576212,0.00016792,2]
[374138331,1753227177803,-54.48925368,0.00016792,2]
[374138332,1753227177827,-203.17160857,0.00016792,2]
[374138333,1753227180632,-258.02257646,0.00016792,2]
[374138334,1753227183785,-154.88530744,0.00016791,2]
[374138335,1753227185849,-145.11469256,0.00016791,2]
[374138336,1753227185873,-38.80581497,0.00016792,2]
[374138337,1753227185897,-39.51695684,0.00016792,2]
[374138338,1753227189071,-460.48304316,0.00016792,2]
[374138339,1753227189097,-3.25704391,0.00016792,2]
[374138340,1753227191662,-250.67935702,0.00016792,2]
[374138341,1753227193727,-162.61818002,0.00016792,2]
[374138342,1753227195401,-83.44541905,0.00016792,2]
[374138343,1753227195425,-207.42720494,0.00016792,2]
[374138344,1753227202287,-196.42486088,0.00016792,2]
[374138345,1753227204906,-96.14793418,0.00016792,2]
[374138346,1753227204932,-179.57274973,0.00016792,2]
[374138347,1753227206643,-194.35291794,0.00016792,2]
[374138348,1753227208298,-126.07433233,0.00016792,2]
[374138349,1753227208320,-158.36025649,0.00016792,2]
[374138350,1753227210431,-290.34280605,0.00016792,2]
[374138351,1753227218637,-98.10966801,0.00016792,2]
[374138352,1753227218660,-201.89033199,0.00016792,2]
[374138353,1753227221616,-298.10966801,0.00016792,2]
[374138354,1753227221661,-136.39309937,0.00016792,2]
[374138355,1753227225350,-278.70950939,0.00016792,2]
[374138356,1753227230864,-84.89739124,0.00016792,2]
[374138357,1753227230890,-154.10260876,0.00016792,2]
[374138358,1753227232608,-208.21672651,0.00016792,2]
[374138359,1753227234757,-137.68066473,0.00016792,2]
[374138360,1753227234781,-29.17218207,0.00016792,2]
[374138363,1753227242849,180.44372309,0.00016695,2]
[374138364,1753227283165,24900.0,0.00015798,2]
[374138365,1753227306861,370000.0,0.00016698,2]
[374138366,1753227363415,-216.75490508,0.00016791,2]
[374138367,1753227367231,-83.24509492,0.00016791,2]
[374138368,1753227367254,-153.42509559,0.00016792,2]
[374138369,1753227369597,-146.57490441,0.00016792,2]
[374138370,1753227369621,-12.81380144,0.00016792,2]
[374138371,1753227372492,-287.18619856,0.00016792,2]
[374138372,1753227372517,-12.81380144,0.00016792,2]
[374138373,1753227374507,-186.04224788,0.00016792,2]
[374138374,1753227376155,-101.14395068,0.00016792,2]
[374138375,1753227376179,-90.74347919,0.00016792,2]
[374138376,1753227384836,180.44372307,0.00016693,2]
[374138377,1753227552959,161.94063397,0.00016693,2]
[374138378,1753227672739,257.34,0.0001676,2]
[374138380,1753227829115,627.474464,0.00013699,2]
[374138381,1753228072228,200.0,0.00016,2]
[374138386,1753228145791,158.85678579,0.00016691,2]
[374138433,1753228232487,-476.40184772,0.00016789,2]
[374138484,1753228239139,-638.59815228,0.00016789,2]
[374138485,1753228239149,-300.0,0.00016789,2]
[374138486,1753228239159,-1200.0,0.00016789,2]
[374138487,1753228239168,-300.0,0.00016789,2]
[374138488,1753228239179,-300.0,0.00016789,2]
[374138489,1753228239188,-300.0,0.00016789,2]
[374138490,1753228239199,-460.0,0.0001679,2]
[374138491,1753228239209,-460.0,0.0001679,2]
[374138492,1753228239219,-460.0,0.0001679,2]
[374138493,1753228239228,-460.0,0.0001679,2]
[374138494,1753228239238,-460.0,0.0001679,2]
[374138495,1753228239248,-460.0,0.0001679,2]
[374138496,1753228239258,-460.0,0.0001679,2]
[374138497,1753228239267,-1157.88,0.0001679,2]
[374138498,1753228239277,-460.0,0.0001679,2]
[374138499,1753228239286,-289.23448609,0.0001679,2]
[374138500,1753228239296,-500.0,0.0001679,2]
[374138501,1753228239306,-500.0,0.0001679,2]
[374138502,1753228239315,-500.0,0.0001679,2]
[374138503,1753228239324,-500.0,0.0001679,2]
[374138504,1753228239333,-322.20737959,0.0001679,2]
[374138505,1753228239343,-500.0,0.0001679,2]
[374138506,1753228239352,-500.0,0.0001679,2]
[374138507,1753228239361,-500.0,0.0001679,2]
[374138508,1753228239371,-500.0,0.0001679,2]
[374138509,1753228239380,-500.0,0.0001679,2]
[374138510,1753228239389,-558.71845551,0.0001679,2]
[374138511,1753228239399,-500.0,0.0001679,2]
[374138512,1753228239408,-500.0,0.0001679,2]
[374138513,1753228239417,-500.0,0.0001679,2]
[374138514,1753228239427,-500.0,0.0001679,2]
[374138515,1753228239436,-239.70595341,0.0001679,2]
[374138516,1753228239445,-500.0,0.0001679,2]
[374138517,1753228239455,-500.0,0.0001679,2]
[374138518,1753228239464,-500.0,0.0001679,2]
[374138519,1753228239473,-500.0,0.0001679,2]
[374138520,1753228239483,-50000.0,0.00016791,2]
[374138521,1753228239493,-460.0,0.00016791,2]
[374138522,1753228239502,-460.0,0.00016791,2]
[374138523,1753228239511,-460.0,0.00016791,2]
[374138524,1753228239521,-460.0,0.00016791,2]
[374138525,1753228239530,-460.0,0.00016791,2]
[374138526,1753228239539,-460.0,0.00016791,2]
[374138527,1753228239550,-460.0,0.00016791,2]
[374138528,1753228239559,-460.0,0.00016791,2]
[374138529,1753228239570,-460.0,0.00016791,2]
[374138530,1753228239579,-460.0,0.00016791,2]
[374138531,1753228239588,-460.0,0.00016791,2]
[374138532,1753228239599,-1954.5,0.00016791,2]
[374138533,1753228239611,-460.0,0.00016791,2]
[374138534,1753228239621,-460.0,0.00016791,2]
[374138535,1753228239630,-451.35645911,0.00016791,2]
[374138536,1753228239640,-460.0,0.00016791,2]
[374138537,1753228239650,-1501.49,0.00016791,2]
[374138538,1753228239659,-460.0,0.00016791,2]
[374138539,1753228239669,-460.0,0.00016791,2]
[374138540,1753228239678,-460.0,0.00016791,2]
[374138541,1753228239688,-1407.56,0.00016791,2]
[374138542,1753228239698,-460.0,0.00016791,2]
[374138543,1753228239707,-460.0,0.00016791,2]
[374138544,1753228239717,-460.0,0.00016791,2]
[374138545,1753228239727,-460.0,0.00016791,2]
[374138546,1753228239738,-460.0,0.00016791,2]
[374138547,1753228239748,-460.0,0.00016791,2]
[374138548,1753228239758,-536.89,0.00016791,2]
[374138549,1753228239768,-460.0,0.00016791,2]
[374138550,1753228239778,-160.0,0.00016793,2]
[374138551,1753228239787,-460.0,0.00016793,2]
[374138552,1753228239796,-460.0,0.00016793,2]
[374138553,1753228239805,-460.0,0.00016793,2]
[374138554,1753228239815,-460.0,0.00016793,2]
[374138555,1753228239825,-460.0,0.00016793,2]
[374138556,1753228239834,-460.0,0.00016793,2]
[374138557,1753228239843,-460.0,0.00016793,2]
[374138558,1753228239853,-3206.05,0.00016793,2]
[374138559,1753228239862,-460.0,0.00016793,2]
[374138560,1753228239872,-460.0,0.00016793,2]
[374138561,1753228239881,-460.0,0.00016793,2]
[374138564,1753228239891,-460.0,0.00016793,2]
[374138565,1753228239900,-460.0,0.00016793,2]
[374138566,1753228239909,-460.0,0.00016793,2]
[374138567,1753228239919,-460.0,0.00016793,2]
[374138568,1753228239928,-460.0,0.00016793,2]
[374138569,1753228239938,-460.0,0.00016793,2]
[374138570,1753228239947,-461.45609941,0.00016793,2]
[374138571,1753228239957,-460.0,0.00016793,2]
[374138572,1753228239966,-460.0,0.00016793,2]
[374138573,1753228239976,-460.0,0.00016793,2]
[374138574,1753228239986,-460.0,0.00016793,2]
[374138575,1753228239995,-460.0,0.00016793,2]
[374138576,1753228240005,-460.0,0.00016793,2]
[374138577,1753228240015,-460.0,0.00016793,2]
[374138578,1753228240024,-460.0,0.00016793,2]
[374138579,1753228240034,-1605.14,0.00016793,2]
[374138580,1753228240043,-446.26204571,0.00016793,2]
[374138581,1753228240053,-460.0,0.00016793,2]
[374138583,1753228240062,-460.0,0.00016793,2]
[374138585,1753228240071,-460.0,0.00016793,2]
[374138587,1753228240080,-327.35339739,0.00016793,2]
[374138589,1753228240090,-460.0,0.00016793,2]
[374138591,1753228240100,-460.0,0.00016793,2]
[374138592,1753228240109,-460.0,0.00016793,2]
[374138593,1753228240119,-460.0,0.00016793,2]
[374138594,1753228240128,-460.0,0.00016793,2]
[374138595,1753228240137,-460.0,0.00016793,2]
[374138596,1753228240146,-460.0,0.00016793,2]
[374138597,1753228240156,-460.0,0.00016793,2]
[374138598,1753228240167,-386.69791952,0.00016793,2]
[374138599,1753228240176,-460.0,0.00016793,2]
[374138600,1753228240186,-508.0597304,0.00016793,2]
[374138601,1753228240195,-460.0,0.00016793,2]
[374138602,1753228240205,-460.0,0.00016793,2]
[374138603,1753228240214,-460.0,0.00016793,2]
[374138604,1753228240223,-593.44862131,0.00016793,2]
[374138605,1753228240235,-460.0,0.00016793,2]
[374138606,1753228240245,-460.0,0.00016793,2]
[374138607,1753228240255,-460.0,0.00016793,2]
[374138608,1753228240266,-460.0,0.00016793,2]
[374138609,1753228240275,-460.95,0.00016793,2]
[374138610,1753228240285,-460.0,0.00016793,2]
[374138611,1753228240295,-461.61365901,0.00016793,2]
[374138612,1753228240306,-500.0,0.00016793,2]
[374138613,1753228240317,-460.0,0.00016793,2]
[374138614,1753228240328,-460.0,0.00016793,2]
[374138615,1753228240337,-460.0,0.00016793,2]
[374138616,1753228240346,-460.0,0.00016793,2]
[374138617,1753228240356,-460.0,0.00016793,2]
[374138618,1753228240366,-460.0,0.00016793,2]
[374138619,1753228240375,-460.0,0.00016793,2]
[374138620,1753228240385,-460.0,0.00016793,2]
[374138621,1753228240395,-460.0,0.00016793,2]
[374138622,1753228240405,-460.0,0.00016793,2]
[374138623,1753228240414,-460.0,0.00016793,2]
[374138625,1753228240423,-460.0,0.00016793,2]
[374138627,1753228240433,-460.0,0.00016793,2]
[374138629,1753228240443,-460.0,0.00016793,2]
[374138631,1753228240453,-460.0,0.00016793,2]
[374138633,1753228240463,-1182.51,0.00016793,2]
[374138634,1753228240472,-460.0,0.00016793,2]
[374138635,1753228240482,-460.0,0.00016793,2]
[374138636,1753228240491,-460.0,0.00016793,2]
[374138637,1753228240500,-460.0,0.00016793,2]
[374138638,1753228240509,-460.0,0.00016793,2]
[374138639,1753228240520,-468.12219909,0.00016793,2]
[374138640,1753228240530,-460.0,0.00016793,2]
[374138641,1753228240539,-460.0,0.00016793,2]
[374138642,1753228240548,-460.0,0.00016793,2]
[374138643,1753228240558,-460.0,0.00016793,2]
[374138644,1753228240568,-460.0,0.00016793,2]
[374138645,1753228240579,-460.0,0.00016793,2]
[374138646,1753228240589,-460.0,0.00016793,2]
[374138647,1753228240598,-460.0,0.00016793,2]
[374138648,1753228240609,-460.0,0.00016793,2]
[374138649,1753228240618,-460.0,0.00016793,2]
[374138650,1753228240627,-460.0,0.00016793,2]
[374138651,1753228240641,-896.25,0.00016793,2]
[374138652,1753228240662,-266.34189574,0.00016793,2]
[374138653,1753228240674,-514.65,0.00016793,2]
[374138654,1753228240687,-460.0,0.00016793,2]
[374138655,1753228240697,-460.0,0.00016793,2]
[374138656,1753228240706,-460.0,0.00016793,2]
[374138657,1753228240716,-460.0,0.00016793,2]
[374138658,1753228240725,-663.37,0.00016793,2]
[374138659,1753228240735,-460.0,0.00016793,2]
[374138660,1753228240745,-460.0,0.00016793,2]
[374138661,1753228240756,-460.0,0.00016793,2]
[374138662,1753228240766,-460.0,0.00016793,2]
[374138663,1753228240775,-375.66154394,0.00016793,2]
[374138664,1753228240785,-459.18600858,0.00016793,2]
[374138665,1753228240794,-460.0,0.00016793,2]
[374138666,1753228240803,-460.0,0.00016793,2]
[374138667,1753228240813,-460.0,0.00016793,2]
[374138668,1753228240822,-460.0,0.00016793,2]
[374138669,1753228240831,-460.0,0.00016793,2]
[374138670,1753228240840,-460.0,0.00016793,2]
[374138671,1753228240849,-500.0,0.00016793,2]
[374138672,1753228240858,-460.0,0.00016793,2]
[374138673,1753228240867,-461.01468414,0.00016793,2]
[374138674,1753228240876,-460.0,0.00016793,2]
[374138675,1753228240886,-460.12898276,0.00016793,2]
[374138676,1753228240895,-460.0,0.00016793,2]
[374138677,1753228240904,-460.0,0.00016793,2]
[374138678,1753228240913,-460.0,0.00016793,2]
[374138679,1753228240922,-460.0,0.00016793,2]
[374138680,1753228240932,-460.0,0.00016793,2]
[374138681,1753228240942,-460.0,0.00016793,2]
[374138682,1753228240951,-460.0,0.00016793,2]
[374138683,1753228240961,-500.0,0.00016794,2]
[374138684,1753228240970,-500.0,0.00016794,2]
[374138685,1753228240979,-500.0,0.00016794,2]
[374138686,1753228240988,-460.0,0.00016795,2]
[374138687,1753228240997,-460.0,0.00016795,2]
[374138688,1753228241007,-460.0,0.00016795,2]
[374138689,1753228241017,-460.0,0.00016795,2]
[374138690,1753228241026,-460.0,0.00016795,2]
[374138691,1753228241035,-460.0,0.00016795,2]
[374138692,1753228241046,-460.0,0.00016795,2]
[374138693,1753228241055,-460.0,0.00016795,2]
[374138694,1753228241065,-460.0,0.00016795,2]
[374138695,1753228241074,-460.0,0.00016795,2]
[374138696,1753228241083,-460.0,0.00016795,2]
[374138697,1753228241092,-460.0,0.00016795,2]
[374138698,1753228241101,-460.0,0.00016795,2]
[374138699,1753228241110,-460.0,0.00016795,2]
[374138700,1753228241120,-460.0,0.00016795,2]
[374138701,1753228241129,-460.0,0.00016795,2]
[374138702,1753228241138,-460.0,0.00016795,2]
[374138703,1753228241147,-463.30568519,0.00016795,2]
[374138704,1753228241157,-542.90625233,0.00016795,2]
[374138705,1753228241167,-460.0,0.00016795,2]
[374138706,1753228241176,-369.63909139,0.00016795,2]
[374138707,1753228241286,-460.0,0.00016795,2]
[374138708,1753228241296,-500.0,0.00016796,2]
[374138709,1753228241306,-460.0,0.00016797,2]
[374138710,1753228241315,-460.0,0.00016797,2]
[374138711,1753228241324,-460.0,0.00016797,2]
[374138712,1753228241333,-460.0,0.00016797,2]
[374138713,1753228241343,-460.0,0.00016797,2]
[374138714,1753228241352,-460.0,0.00016797,2]
[374138715,1753228241362,-460.0,0.00016797,2]
[374138716,1753228241372,-460.0,0.00016797,2]
[374138717,1753228241381,-460.0,0.00016797,2]
[374138718,1753228241390,-460.0,0.00016797,2]
[374138719,1753228241399,-460.0,0.00016797,2]
[374138720,1753228241408,-460.0,0.00016797,2]
[374138721,1753228241417,-460.0,0.00016797,2]
[374138722,1753228241426,-460.0,0.00016797,2]
[374138723,1753228241435,-460.0,0.00016797,2]
[374138724,1753228241445,-460.0,0.00016797,2]
[374138725,1753228241454,-460.0,0.00016797,2]
[374138726,1753228241463,-460.0,0.00016797,2]
[374138727,1753228241472,-460.0,0.00016797,2]
[374138728,1753228241482,-2195.3,0.00016797,2]
[374138729,1753228241491,-460.0,0.00016797,2]
[374138730,1753228241500,-1358.51,0.00016797,2]
[374138731,1753228241509,-462.70618144,0.00016797,2]
[374138732,1753228241518,-460.0,0.00016797,2]
[374138733,1753228241528,-1239.57,0.00016797,2]
[374138734,1753228241537,-460.0,0.00016797,2]
[374138735,1753228241546,-463.1120476,0.00016797,2]
[374138736,1753228241555,-460.0,0.00016797,2]
[374138737,1753228241566,-422.51889345,0.00016797,2]
[374138738,1753228241575,-460.0,0.00016797,2]
[374138739,1753228241585,-460.0,0.00016797,2]
[374138740,1753228241594,-1658.01,0.00016797,2]
[374138741,1753228241607,-460.0,0.00016797,2]
[374138742,1753228241616,-460.0,0.00016797,2]
[374138743,1753228241626,-460.0,0.00016797,2]
[374138744,1753228241636,-460.0,0.00016797,2]
[374138745,1753228241646,-460.0,0.00016797,2]
[374138746,1753228241655,-2253.65,0.00016797,2]
[374138747,1753228241666,-1340.59,0.00016797,2]
[374138748,1753228241675,-1293.49,0.00016797,2]
[374138749,1753228241687,-477.92334565,0.00016797,2]
[374138750,1753228241696,-40557.136919,0.00017,2]
[374138751,1753228241705,-540.0,0.00017064,2]
[374138752,1753228241714,-460.0,0.00017064,2]
[374138753,1753228241724,-460.0,0.00017064,2]
[374138754,1753228241734,-1157.88,0.00017064,2]
[374138755,1753228241746,-460.0,0.00017064,2]
[374138756,1753228241755,-460.0,0.00017065,2]
[374138757,1753228241764,-1954.5,0.00017065,2]
[374138758,1753228241774,-460.0,0.00017065,2]
[374138759,1753228241783,-460.0,0.00017065,2]
[374138760,1753228241793,-1501.49,0.00017065,2]
[374138761,1753228241803,-489.42059643,0.00017065,2]
[374138762,1753228241812,-460.0,0.00017065,2]
[374138763,1753228241822,-1407.56,0.00017065,2]
[374138764,1753228241831,-460.0,0.00017065,2]
[374138765,1753228241841,-460.0,0.00017065,2]
[374138766,1753228241853,-536.89,0.00017065,2]
[374138767,1753228241863,-335.43509946,0.00017065,2]
[374138768,1753228241871,-276.60745376,0.00017067,2]
[374138769,1753228241881,-460.0,0.00017067,2]
[374138770,1753228241890,-284.43458882,0.00017067,2]
[374138771,1753228241899,-460.0,0.00017067,2]
[374138772,1753228241910,-460.0,0.00017067,2]
[374138773,1753228241921,-3206.05,0.00017067,2]
[374138774,1753228241931,-460.0,0.00017067,2]
[374138775,1753228241940,-460.0,0.00017067,2]
[374138776,1753228241950,-460.0,0.00017067,2]
[374138777,1753228241959,-460.0,0.00017067,2]
[374138778,1753228241968,-460.0,0.00017067,2]
[374138779,1753228241977,-460.0,0.00017067,2]
[374138780,1753228241986,-460.0,0.00017067,2]
[374138781,1753228241995,-1605.14,0.00017067,2]
[374138782,1753228242005,-460.0,0.00017067,2]
[374138783,1753228242015,-460.0,0.00017067,2]
[374138784,1753228242024,-526.00692046,0.00017067,2]
[374138785,1753228242033,-460.0,0.00017067,2]
[374138786,1753228242043,-158.2457422,0.00017067,2]
[374138787,1753228242052,-460.0,0.00017067,2]
[374138788,1753228242062,-460.0,0.00017067,2]
[374138789,1753228242071,-460.95,0.00017067,2]
[374138790,1753228242080,-460.0,0.00017067,2]
[374138791,1753228242090,-460.0,0.00017067,2]
[374138792,1753228242099,-460.0,0.00017067,2]
[374138793,1753228242108,-460.0,0.00017067,2]
[374138794,1753228242118,-460.0,0.00017067,2]
[374138795,1753228242128,-460.0,0.00017067,2]
[374138796,1753228242136,-460.0,0.00017067,2]
[374138797,1753228242145,-1182.51,0.00017067,2]
[374138798,1753228242155,-460.0,0.00017067,2]
[374138799,1753228242164,-460.0,0.00017067,2]
[374138800,1753228242173,-195.57427041,0.00017067,2]
[374138801,1753228242182,-460.0,0.00017067,2]
[374138802,1753228242192,-453.98757373,0.00017067,2]
[374138803,1753228242201,-460.0,0.00017067,2]
[374138804,1753228242211,-460.0,0.00017067,2]
[374138805,1753228242220,-460.0,0.00017067,2]
[374138806,1753228242229,-896.25,0.00017067,2]
[374138807,1753228242238,-514.65,0.00017067,2]
[374138808,1753228242247,-460.0,0.00017067,2]
[374138809,1753228242255,-460.0,0.00017067,2]
[374138810,1753228242266,-460.0,0.00017067,2]
[374138811,1753228242275,-663.37,0.00017067,2]
[374138812,1753228242285,-460.0,0.00017067,2]
[374138813,1753228242294,-460.0,0.00017067,2]
[374138814,1753228242303,-460.0,0.00017067,2]
[374138815,1753228242312,-460.0,0.00017067,2]
[374138816,1753228242322,-460.0,0.00017067,2]
[374138817,1753228242331,-460.0,0.00017067,2]
[374138818,1753228242341,-460.0,0.00017067,2]
[374138819,1753228242350,-460.0,0.00017067,2]
[374138820,1753228242360,-460.0,0.00017067,2]
[374138821,1753228242369,-460.0,0.00017067,2]
[374138822,1753228242378,-460.0,0.00017069,2]
[374138823,1753228242387,-460.0,0.00017069,2]
[374138824,1753228242396,-460.0,0.00017069,2]
[374138825,1753228242406,-324.23181301,0.00017069,2]
[374138826,1753228242415,-460.0,0.00017069,2]
[374138827,1753228242425,-460.0,0.00017069,2]
[374138828,1753228242434,-460.0,0.00017069,2]
[374138829,1753228242443,-460.0,0.00017069,2]
[374138830,1753228242452,-460.0,0.00017069,2]
[374138831,1753228242461,-460.0,0.00017069,2]
[374138832,1753228242471,-460.0,0.00017069,2]
[374138833,1753228242479,-460.0,0.00017071,2]
[374138834,1753228242489,-460.0,0.00017071,2]
[374138835,1753228242499,-460.0,0.00017071,2]
[374138836,1753228242508,-460.0,0.00017071,2]
[374138837,1753228242519,-460.0,0.00017071,2]
[374138838,1753228242528,-457.63024899,0.00017071,2]
[374138839,1753228242538,-460.0,0.00017071,2]
[374138840,1753228242548,-2195.3,0.00017071,2]
[374138841,1753228242561,-1417.57,0.00017071,2]
[374138842,1753228242570,-1358.51,0.00017071,2]
[374138843,1753228242580,-1239.57,0.00017071,2]
[374138844,1753228242599,-460.0,0.00017071,2]
[374138845,1753228242619,-460.0,0.00017071,2]
[374138846,1753228242634,-460.0,0.00017071,2]
[374138847,1753228242644,-1658.01,0.00017071,2]
[374138848,1753228242653,-460.0,0.00017071,2]
[374138849,1753228242662,-486.47431785,0.00017071,2]
[374138850,1753228242672,-460.0,0.00017071,2]
[374138851,1753228242681,-460.0,0.00017071,2]
[374138852,1753228242690,-2253.65,0.00017071,2]
[374138853,1753228242699,-1340.59,0.00017071,2]
[374138854,1753228242709,-1293.49,0.00017071,2]
[374138855,1753228242719,-500.0,0.00017073,2]
[374138856,1753228242728,-500.0,0.00017073,2]
[374138857,1753228242737,-500.0,0.00017073,2]
[374138858,1753228242747,-500.0,0.00017073,2]
[374138859,1753228242756,-500.0,0.00017073,2]
[374138860,1753228242766,-3462.41494757,0.00017239,2]
[374138861,1753228242776,-9436.3509864,0.00017239,2]
[374138862,1753228242786,-460.0,0.00017338,2]
[374138863,1753228242795,-460.0,0.00017338,2]
[374138864,1753228242804,-1157.88,0.00017338,2]
[374138865,1753228242813,-460.0,0.00017338,2]
[374138866,1753228242823,-460.0,0.00017339,2]
[374138867,1753228242832,-1954.5,0.00017339,2]
[374138868,1753228242841,-460.0,0.00017339,2]
[374138869,1753228242850,-460.0,0.00017339,2]
[374138870,1753228242860,-1501.49,0.00017339,2]
[374138871,1753228242869,-460.0,0.00017339,2]
[374138872,1753228242879,-1407.56,0.00017339,2]
[374138873,1753228242888,-460.0,0.00017339,2]
[374138874,1753228242898,-460.0,0.00017339,2]
[374138875,1753228242907,-536.89,0.00017339,2]
[374138876,1753228242916,-460.0,0.00017341,2]
[374138877,1753228242926,-460.0,0.00017341,2]
[374138878,1753228242935,-3206.05,0.00017341,2]
[374138879,1753228242945,-460.0,0.00017341,2]
[374138880,1753228242954,-460.0,0.00017341,2]
[374138882,1753228242963,-460.0,0.00017341,2]
[374138883,1753228242972,-460.0,0.00017341,2]
[374138884,1753228242982,-460.0,0.00017341,2]
[374138885,1753228242991,-460.0,0.00017341,2]
[374138886,1753228243001,-1605.14,0.00017341,2]
[374138887,1753228243011,-460.0,0.00017341,2]
[374138888,1753228243021,-460.0,0.00017341,2]
[374138889,1753228243030,-528.43642794,0.00017341,2]
[374138890,1753228243040,-460.95,0.00017341,2]
[374138891,1753228243049,-460.0,0.00017341,2]
[374138892,1753228243058,-460.0,0.00017341,2]
[374138893,1753228243067,-460.0,0.00017341,2]
[374138894,1753228243077,-460.0,0.00017341,2]
[374138895,1753228243086,-460.0,0.00017341,2]
[374138896,1753228243095,-460.0,0.00017341,2]
[374138897,1753228243105,-1182.51,0.00017341,2]
[374138898,1753228243115,-460.0,0.00017341,2]
[374138899,1753228243124,-460.0,0.00017341,2]
[374138900,1753228243133,-460.0,0.00017341,2]
[374138901,1753228243142,-460.0,0.00017341,2]
[374138902,1753228243152,-460.0,0.00017341,2]
[374138903,1753228243161,-305.61292667,0.00017341,2]
[374138904,1753228243170,-896.25,0.00017341,2]
[374138905,1753228243179,-514.65,0.00017341,2]
[374138906,1753228243188,-460.0,0.00017341,2]
[374138907,1753228243198,-460.0,0.00017341,2]
[374138909,1753228243207,-460.0,0.00017341,2]
[374138910,1753228243217,-663.37,0.00017341,2]
[374138911,1753228243226,-460.0,0.00017341,2]
[374138912,1753228243236,-460.0,0.00017341,2]
[374138913,1753228243245,-460.0,0.00017341,2]
[374138914,1753228243255,-460.0,0.00017341,2]
[374138915,1753228243264,-460.0,0.00017341,2]
[374138916,1753228243273,-460.0,0.00017341,2]
[374138917,1753228243283,-460.0,0.00017341,2]
[374138918,1753228243292,-460.0,0.00017341,2]
[374138919,1753228243301,-460.0,0.00017343,2]
[374138920,1753228243311,-460.0,0.00017343,2]
[374138921,1753228243320,-460.0,0.00017343,2]
[374138922,1753228243329,-460.0,0.00017343,2]
[374138923,1753228243338,-460.0,0.00017343,2]
[374138924,1753228243347,-460.0,0.00017343,2]
[374138925,1753228243357,-460.0,0.00017343,2]
[374138926,1753228243366,-460.0,0.00017343,2]
[374138927,1753228243375,-460.0,0.00017343,2]
[374138928,1753228243384,-460.0,0.00017345,2]
[374138929,1753228243393,-460.0,0.00017345,2]
[374138930,1753228243402,-2195.3,0.00017345,2]
[374138931,1753228243412,-1358.51,0.00017345,2]
[374138932,1753228243421,-1239.57,0.00017345,2]